Workbook

Sheet ORÇAMENTO
A1: <---- NUMERAR SERVIÇOS PARA CPU | C1: Ministério do Desenvolvimento Regional
C2: Companhia de Desenvolvimento dos Vales do São Francisco e do Parnaíba
C3: 1ª Superintendência Regional
B5: OBRA: | C5: PAVIMENTAÇÃO EM BLOQUETE - RUAS DIVERSAS - MALACACHETA/ MG
B6: DATA: | C6: SETEMBRO/2023 | G6: BDI Serviços: | I6: ='BDI SERV'!D30/100 -> 0.2149
B7: PRAZO DE EXECUÇÃO: 210 DIAS
B8: ITEM | C8: DISCRIMINAÇÃO | D8: REFER. | E8: UNID. | F8: QUANT. | G8: P. UNITÁRIO | H8: P.UNIT.C/ BDI | I8: P. TOTAL
A9: A | B9: 1 | C9: SERVIÇOS PRELIMINARES | I9: =SUM(I10:I14) -> 110958.61 | L9: .
A10: 1 | B10: 1.1 | C10: MOBILIZAÇÃO E DESMOBILIZAÇÃO | D10: CPU.1 | E10: GL | F10: 1 | G10: =VLOOKUP(A10,CPU!$A$1:$N$4525,9) -> 4047.6 | H10: =VLOOKUP(A10,CPU!$A$1:$N$4525,10) -> 4917.42924 | I10: =ROUND(F10*H10,2) -> 4917.43
A11: 2 | B11: 1.2 | C11: ADMINISTRAÇÃO LOCAL | D11: CPU.2 | E11: GL | F11: 1 | G11: =VLOOKUP(A11,CPU!$A$1:$N$4525,9) -> 76973.96 | H11: =VLOOKUP(A11,CPU!$A$1:$N$4525,10) -> 93515.664 | I11: =ROUND(F11*H11,2) -> 93515.66
A12: 3 | B12: 1.3 | C12: CANTEIRO DE OBRAS | D12: CPU.3 | E12: GL | F12: 1 | G12: =VLOOKUP(A12,CPU!$A$1:$N$4525,9) -> 6825 | H12: =VLOOKUP(A12,CPU!$A$1:$N$4525,10) -> 8291.6925 | I12: =ROUND(F12*H12,2) -> 8291.69
A13: 4 | B13: 1.4 | C13: PLACA DE OBRA EM CHAPA DE AÇO GALVANIZADO | D13: 103689a | E13: M2 | F13: 4.5 | G13: =VLOOKUP(A13,CPU!$A$1:$N$4525,9) -> 307.76 | H13: =VLOOKUP(A13,CPU!$A$1:$N$4525,10) -> 373.897624 | I13: =ROUND(F13*H13,2) -> 1682.54 | L13: .
A14: 5 | B14: 1.5 | C14: LOCAÇÃO DE PAVIMENTAÇÃO | D14: 99064 | E14: M | F14: 3000 | G14: =VLOOKUP(A14,CPU!$A$1:$N$4525,9) -> 0.7 | H14: =VLOOKUP(A14,CPU!$A$1:$N$4525,10) -> 0.85043 | I14: =ROUND(F14*H14,2) -> 2551.29
A15: B | B15: 2 | C15: PAVIMENTAÇÃO | I15: =SUM(I16:I21) -> 1720687.19
A16: 6 | B16: 2.1 | C16: ESCAVAÇÃO HORIZONTAL EM SOLO DE 1A CATEGORIA COM TRATOR DE ESTEIRAS | D16: 101116 | E16: M3 | F16: 9500 | G16: =VLOOKUP(A16,CPU!$A$1:$N$4525,9) -> 2.2 | H16: =VLOOKUP(A16,CPU!$A$1:$N$4525,10) -> 2.67278 | I16: =ROUND(F16*H16,2) -> 25391.41
A17: 7 | B17: 2.2 | C17: CARGA, MANOBRA E DESCARGA DE SOLOS E MATERIAIS GRANULARES EM CAMINHÃO BASCULANTE - CARGA COM PÁ CARREGADEIRA E DESCARGA LIVRE | D17: 100976 | E17: M3 | F17: 9500 | G17: =VLOOKUP(A17,CPU!$A$1:$N$4525,9) -> 8.71 | H17: =VLOOKUP(A17,CPU!$A$1:$N$4525,10) -> 10.581779 | I17: =ROUND(F17*H17,2) -> 100526.9
A18: 8 | B18: 2.3 | C18: REGULARIZAÇÃO E COMPACTAÇÃO DE SUBLEITO | D18: 100576 | E18: M2 | F18: 21500 | G18: =VLOOKUP(A18,CPU!$A$1:$N$4525,9) -> 2.57 | H18: =VLOOKUP(A18,CPU!$A$1:$N$4525,10) -> 3.122293 | I18: =ROUND(F18*H18,2) -> 67129.3
A19: 9 | B19: 2.4 | C19: CASCALHO DE CAVA - EXCLUSIVE TRANSPORTE | D19: - | E19: M3 | F19: 3200 | G19: FORNECIDO PELA PREFEITURA | I19: -
A20: 10 | B20: 2.5 | C20: EXECUÇÃO E COMPACTAÇÃO DE BASE E OU SUB BASE PARA PAVIMENTAÇÃO EM CASCALHO - EXCLUSIVE SOLO, ESCAVAÇÃO, CARGA E TRANSPORTE. | D20: 96388 | E20: M3 | F20: 3200 | G20: =VLOOKUP(A20,CPU!$A$1:$N$4525,9) -> 12.47 | H20: =VLOOKUP(A20,CPU!$A$1:$N$4525,10) -> 15.15 | I20: =ROUND(F20*H20,2) -> 48480
A21: 11 | B21: 2.6 | C21: EXECUÇÃO DE PAVIMENTO EM PISO INTERTRAVADO, COM BLOCO SEXTAVADO DE CONCRETO DE 25 X 25 CM, ESPESSURA 8 CM | D21: 92394 | E21: M2 | F21: 18450 | G21: =VLOOKUP(A21,CPU!$A$1:$N$4525,9) -> 65.99 | H21: =VLOOKUP(A21,CPU!$A$1:$N$4525,10) -> 80.171251 | I21: 1479159.58
A22: C | B22: 3 | C22: TRANSPORTE DE MATERIAIS | I22: =SUM(I23:I25) -> 108174.69
A23: 12 | B23: 3.1 | C23: TRANSPORTE COM CAMINHÃO BASCULANTE, EM VIA URBANA EM REVESTIMENTO PRIMÁRIO | D23: 95426 | E23: M3XKM | F23: 52000 | G23: =VLOOKUP(A23,CPU!$A$1:$N$4525,9) -> 1.41 | H23: =VLOOKUP(A23,CPU!$A$1:$N$4525,10) -> 1.713009 | I23: =ROUND(F23*H23,2) -> 89076.47
A24: 13 | B24: 3.2 | C24: TRANSPORTE COM CAMINHÃO BASCULANTE, EM VIA URBANA PAVIMENTADA | D24: 95427 | E24: M3XKM | F24: 6000.001 | G24: =VLOOKUP(A24,CPU!$A$1:$N$4525,9) -> 0.73 | H24: =VLOOKUP(A24,CPU!$A$1:$N$4525,10) -> 0.886877 | I24: =ROUND(F24*H24,2) -> 5321.26
A25: 14 | B25: 3.3 | C25: TRANSPORTE COM CAMINHÃO CARROCERIA, EM VIA URBANA PAVIMENTADA | D25: 100948 | E25: TXKM | F25: 17999.99756 | G25: =VLOOKUP(A25,CPU!$A$1:$N$4525,9) -> 0.63 | H25: =VLOOKUP(A25,CPU!$A$1:$N$4525,10) -> 0.765387 | I25: =ROUND(F25*H25,2) -> 13776.96
A26: D | B26: 4 | C26: OBRAS COMPLEMENTARES | I26: =SUM(I27:I30) -> 615785.89
A27: 15 | B27: 4.1 | C27: ASSENTAMENTO DE GUIA (MEIO-FIO) EM TRECHO RETO, CONFECCIONADA EM CONCRETO PRÉ-FABRICADO, DIMENSÕES 100X15X13X30 CM (COMPRIMENTO X BASE INFERIOR X BASE SUPERIOR X ALTURA) | D27: 94273a | E27: M | F27: 6200 | G27: =VLOOKUP(A27,CPU!$A$1:$N$4525,9) -> 45.68 | H27: =VLOOKUP(A27,CPU!$A$1:$N$4525,10) -> 55.496632 | I27: =ROUND(F27*H27,2) -> 344079.12
A28: 16 | B28: 4.2 | C28: EXECUÇÃO DE SARJETA DE CONCRETO USINADO, MOLDADA IN LOCO EM TRECHO RETO, 30 CM BASE X 5 CM ALTURA | D28: 94287a | E28: M | F28: 5950 | G28: =VLOOKUP(A28,CPU!$A$1:$N$4525,9) -> 34.83 | H28: =VLOOKUP(A28,CPU!$A$1:$N$4525,10) -> 42.314967 | I28: =ROUND(F28*H28,2) -> 251774.05
A29: 17 | B29: 4.3 | C29: FORNECIMENTO E INSTALAÇÃO DE PLACA DE SINALIZAÇÃO VIÁRIA - REGULAMENTAÇÃO (PARE) | D29: CPU.4 | E29: UN. | F29: 20 | G29: =VLOOKUP(A29,CPU!$A$1:$N$4525,9) -> 482.58 | H29: =VLOOKUP(A29,CPU!$A$1:$N$4525,10) -> 586.29 | I29: =ROUND(F29*H29,2) -> 11725.8
A30: 18 | B30: 4.4 | C30: FORNECIMENTO E INSTALAÇÃO DE PLACA DE AÇO PARA IDENTIFICACAO DE RUA, *45 CM X 20* CM, INCLUSIVE SUPORTE EM TUBO DE AÇO GALVANIZADO (02 PLACAS POR SUPORTE) | D30: CPU.5 | E30: UN. | F30: 18 | G30: =VLOOKUP(A30,CPU!$A$1:$N$4525,9) -> 375.29 | H30: =VLOOKUP(A30,CPU!$A$1:$N$4525,10) -> 455.94 | I30: 8206.92
B31: TOTAL GERAL DA OBRA COM BDI | I31: =SUM(I9,I15,I22,I26) -> 2555606.38

Sheet CPU
A1: 1 | B1: CODEVASF | E1: COMPOSIÇÃO DE PREÇO UNITÁRIO | I1: =H10 -> 4047.6 | J1: =H12 -> 4917.42924 | K1: BDI CALCULADO: | M1: =ORÇAMENTO!I6 -> 0.2149
B2: OBRA: | C2: =ORÇAMENTO!C5 -> PAVIMENTAÇÃO EM BLOQUETE - RUAS DIVERSAS - MALACACHETA/ MG | G2: DATA: | H2: =ORÇAMENTO!C6 -> SETEMBRO/2023
B3: SERVIÇO: | C3: =VLOOKUP(A1,ORÇAMENTO!A10:I28,3) -> MOBILIZAÇÃO E DESMOBILIZAÇÃO | E3: Referência: | F3: =VLOOKUP(A1,ORÇAMENTO!A10:I28,4) -> CPU.1 | G3: UNIDADE: | H3: =VLOOKUP(A1,ORÇAMENTO!A10:I28,5) -> GL
B5: TIPO ITEM | C5: CODIGO ITEM | D5: DESCRIÇÃO ITEM | E5: UNIDADE ITEM | F5: COEFICIENTE | G5: PRECO UNITARIO | H5: CUSTO TOTAL
B6: COMPOSICAO | C6: 5824 | D6: CAMINHÃO TOCO, PBT 16.000 KG, CARGA ÚTIL MÁX. 10.685 KG, DIST. ENTRE EIXOS 4,8 M, POTÊNCIA 189 CV, INCLUSIVE CARROCERIA FIXA ABERTA DE MADEIRA P/ TRANSPORTE GERAL DE CARGA SECA | E6: CHP | F6: 16 | G6: 202,74 | H6: =ROUNDDOWN(F6*G6,2) -> 3243.84
B7: COMPOSICAO | C7: 5826 | D7: CAMINHÃO TOCO, PBT 16.000 KG, CARGA ÚTIL MÁX. 10.685 KG, DIST. ENTRE EIXOS 4,8 M, POTÊNCIA 189 CV, INCLUSIVE CARROCERIA FIXA ABERTA DE MADEIRA P/ TRANSPORTE GERAL DE CARGA SECA | E7: CHI | F7: 8 | G7: 60,95 | H7: =ROUNDDOWN(F7*G7,2) -> 487.6
B8: COMPOSIÇÃO | C8: 88316 | D8: SERVENTE COM ENCARGOS COMPLEMENTARES | E8: H | F8: 16 | G8: 19,76 | H8: 316.16
B9: PRODUÇÃO DA EQUIPE | E9: 1 | F9: CUSTO | H9: =SUM(H6:H8) -> 4047.6
B10: TOTAL | H10: =H9/E9 -> 4047.6 | I10: OK
B11: BDI % | H11: =1+$M$1 -> 1.2149
B12: TOTAL DO SERVIÇO - R$ | H12: =H10*H11 -> 4917.42924
A14: =A1+1 -> 2 | B14: CODEVASF | E14: COMPOSIÇÃO DE PREÇO UNITÁRIO | I14: =H27 -> 76973.96 | J14: =H29 -> 93515.664
B15: OBRA: | C15: =$C$2 -> PAVIMENTAÇÃO EM BLOQUETE - RUAS DIVERSAS - MALACACHETA/ MG | G15: DATA: | H15: =$H$2 -> SETEMBRO/2023
B16: SERVIÇO: | C16: =VLOOKUP(A14,ORÇAMENTO!$A$10:$I$28,3) -> ADMINISTRAÇÃO LOCAL | E16: SINAPI | F16: =VLOOKUP(A14,ORÇAMENTO!A10:I28,4,0) -> CPU.2 | G16: UNIDADE: | H16: =VLOOKUP(A14,ORÇAMENTO!$A$10:$I$28,5) -> GL
B18: TIPO ITEM | C18: CODIGO ITEM | D18: DESCRIÇÃO ITEM | E18: UNIDADE ITEM | F18: COEFICIENTE | G18: PRECO UNITARIO | H18: CUSTO TOTAL
B19: INSUMO | C19: 14250 | D19: ENERGIA ELÉTRICA | E19: kwh | F19: 80 | G19: 0,94 | H19: =ROUNDDOWN(F19*G19,2) -> 75.2
B20: INSUMO | C20: 44480 | D20: TARIFA "A" ENTRE 0 E 20 M³ - FORNECIMENTO D'ÁGUA | E20: m³ | F20: 6 | G20: 17,78 | H20: =ROUNDDOWN(F20*G20,2) -> 106.68
B21: COTAÇÃO | C21: MERC. | D21: TELEFONE (PLANO CONTROLE) | E21: UNID | F21: 2 | G21: 60 | H21: 120
B22: COMPOSICAO | C22: 90777 | D22: Engenheiro Civil Júnior com encargos complementares | E22: H | F22: 30 | G22: 114,12 | H22: 3423.6
B23: COMPOSICAO | C23: 90776 | D23: Encarregado Geral com encargos complementares | E23: H | F23: 90 | G23: 57,73 | H23: 5195.7
B24: COMPOSICAO | C24: 88321 | D24: Tecnico de Laboratório com encargos complementares | E24: H | F24: 30 | G24: 45,45 | H24: 1363.5
B25: COMPOSICAO | C25: 90772 | D25: Auxiliar de escritório com encargos complementares | E25: H | F25: 30 | G25: 23.72 | H25: 711.6
B26: PRODUÇÃO DA EQUIPE | E26: =1/7 -> 0.1428571429 | F26: CUSTO | H26: =SUM(H19:H25) -> 10996.28
B27: TOTAL | H27: =H26/E26 -> 76973.96 | I27: OK
B28: BDI % | H28: =1+$M$1 -> 1.2149
B29: TOTAL DO SERVIÇO - R$ | H29: =H27*H28 -> 93515.664
A31: =A14+1 -> 3 | B31: CODEVASF | E31: COMPOSIÇÃO DE PREÇO UNITÁRIO | I31: =H38 -> 6825 | J31: =H40 -> 8291.6925
B32: OBRA: | C32: =$C$2 -> PAVIMENTAÇÃO EM BLOQUETE - RUAS DIVERSAS - MALACACHETA/ MG | G32: DATA: | H32: =$H$2 -> SETEMBRO/2023
B33: SERVIÇO: | C33: =VLOOKUP(A31,ORÇAMENTO!$A$10:$I$28,3) -> CANTEIRO DE OBRAS | E33: SINAPI | F33: =VLOOKUP(A31,ORÇAMENTO!$A$10:$I$28,4) -> CPU.3 | G33: UNIDADE: | H33: =VLOOKUP(A31,ORÇAMENTO!$A$10:$I$28,5) -> GL
B35: TIPO ITEM | C35: CODIGO ITEM | D35: DESCRIÇÃO ITEM | E35: UNIDADE ITEM | F35: COEFICIENTE | G35: PRECO UNITARIO | H35: CUSTO TOTAL
B36: COTAÇÃO | C36: 10775 | D36: ALUGUEL DE IMÓVEL OU CONTEINER QUE ATENDA AOS REQUISITOS MÍNIMOS PARA INSTALAÇÃO DO CANTEIRO DE OBRAS | E36: MÊS | F36: 7 | G36: 975 | H36: =ROUNDDOWN(F36*G36,2) -> 6825
B37: PRODUÇÃO DA EQUIPE | E37: 1 | F37: CUSTO | H37: =SUM(H36:H36) -> 6825
B38: TOTAL | H38: =H37/E37 -> 6825 | I38: OK
B39: BDI % | H39: =1+$M$1 -> 1.2149
B40: TOTAL DO SERVIÇO - R$ | H40: =H38*H39 -> 8291.6925
A42: =A31+1 -> 4 | B42: CODEVASF | E42: COMPOSIÇÃO DE PREÇO UNITÁRIO | I42: =H55 -> 307.76 | J42: =H57 -> 373.897624
B43: OBRA: | C43: =$C$2 -> PAVIMENTAÇÃO EM BLOQUETE - RUAS DIVERSAS - MALACACHETA/ MG | G43: DATA: | H43: =$H$2 -> SETEMBRO/2023
B44: SERVIÇO: | C44: =VLOOKUP(A42,ORÇAMENTO!$A$10:$I$28,3) -> PLACA DE OBRA EM CHAPA DE AÇO GALVANIZADO | E44: SINAPI | F44: =VLOOKUP(A42,ORÇAMENTO!$A$10:$I$28,4) -> 103689a | G44: UNIDADE: | H44: =VLOOKUP(A42,ORÇAMENTO!$A$10:$I$28,5) -> M2
B46: TIPO ITEM | C46: CODIGO ITEM | D46: DESCRIÇÃO ITEM | E46: UNIDADE ITEM | F46: COEFICIENTE | G46: PRECO UNITARIO | H46: CUSTO TOTAL
B47: INSUMO | C47: 4509 | D47: SARRAFO *2,5 X 10* CM EM PINUS, MISTA OU EQUIVALENTE DA REGIAO - BRUTA | E47: M | F47: 3,2083000 | G47: 4,41 | H47: =ROUNDDOWN(F47*G47,2) -> 14.14
B48: INSUMO | C48: 4813 | D48: PLACA DE OBRA (PARA CONSTRUCAO CIVIL) EM CHAPA GALVANIZADA *N. 22*, ADESIVADA, DE *2,4 X 1,2* M (SEM POSTES PARA FIXACAO) | E48: M2 | F48: 1,0000000 | G48: 250,00 | H48: =ROUNDDOWN(F48*G48,2) -> 250
B49: INSUMO | C49: 5065 | D49: PREGO DE ACO POLIDO COM CABECA 10 X 10 (7/8 X 17) | E49: KG | F49: 0,0113000 | G49: 36,57 | H49: 0.41
B50: INSUMO | C50: 5069 | D50: PREGO DE ACO POLIDO COM CABECA 17 X 27 (2 1/2 X 11) | E50: KG | F50: 0,0132000 | G50: 19,59 | H50: 0.25
B51: COMPOSICAO | C51: 88262 | D51: CARPINTEIRO DE FORMAS COM ENCARGOS COMPLEMENTARES | E51: H | F51: 0,3729000 | G51: 27,05 | H51: 10.08
B52: COMPOSICAO | C52: 88316 | D52: SERVENTE COM ENCARGOS COMPLEMENTARES | E52: H | F52: 1,1186000 | G52: 19,76 | H52: 22.1
B53: COMPOSICAO | C53: 4115 | D53: MADEIRA ROLICA TRATADA, D = 12 A 15 CM, H = 3,00 M, EM EUCALIPTO OU EQUIVALENTE | E53: M2 | F53: 0.5 | G53: 21,57 | H53: 10.78
B54: PRODUÇÃO DA EQUIPE | E54: 1 | F54: CUSTO | H54: =SUM(H47:H53) -> 307.76
B55: TOTAL | H55: =H54/E54 -> 307.76 | I55: OK
B56: BDI % | H56: =1+$M$1 -> 1.2149
B57: TOTAL DO SERVIÇO - R$ | H57: =H55*H56 -> 373.897624
A59: =A42+1 -> 5 | B59: CODEVASF | E59: COMPOSIÇÃO DE PREÇO UNITÁRIO | I59: =H66 -> 0.7 | J59: =H68 -> 0.85043
B60: OBRA: | C60: =$C$2 -> PAVIMENTAÇÃO EM BLOQUETE - RUAS DIVERSAS - MALACACHETA/ MG | G60: DATA: | H60: =$H$2 -> SETEMBRO/2023
B61: SERVIÇO: | C61: =VLOOKUP(A59,ORÇAMENTO!$A$10:$I$28,3) -> LOCAÇÃO DE PAVIMENTAÇÃO | E61: SINAPI | F61: =VLOOKUP(A59,ORÇAMENTO!$A$10:$I$28,4) -> 99064 | G61: UNIDADE: | H61: =VLOOKUP(A59,ORÇAMENTO!$A$10:$I$28,5) -> M
B63: TIPO ITEM | C63: CODIGO ITEM | D63: DESCRIÇÃO ITEM | E63: UNIDADE ITEM | F63: COEFICIENTE | G63: PRECO UNITARIO | H63: CUSTO TOTAL
B64: COMPOSICAO | C64: 99058 | D64: LOCAÇÃO DE PONTO PARA REFERÊNCIA TOPOGRÁFICA | E64: UN | F64: 0,0500000 | G64: 14.14 | H64: =ROUNDDOWN(F64*G64,2) -> 0.7
B65: PRODUÇÃO DA EQUIPE | E65: 1 | F65: CUSTO | H65: =SUM(H64:H64) -> 0.7
B66: TOTAL | H66: =H65/E65 -> 0.7 | I66: OK
B67: BDI % | H67: =1+$M$1 -> 1.2149
B68: TOTAL DO SERVIÇO - R$ | H68: =H66*H67 -> 0.85043
A70: =A59+1 -> 6 | B70: CODEVASF | E70: COMPOSIÇÃO DE PREÇO UNITÁRIO | I70: =H79 -> 2.2 | J70: =H81 -> 2.67278
B71: OBRA: | C71: =$C$2 -> PAVIMENTAÇÃO EM BLOQUETE - RUAS DIVERSAS - MALACACHETA/ MG | G71: DATA: | H71: =$H$2 -> SETEMBRO/2023
B72: SERVIÇO: | C72: =VLOOKUP(A70,ORÇAMENTO!$A$10:$I$28,3) -> ESCAVAÇÃO HORIZONTAL EM SOLO DE 1A CATEGORIA COM TRATOR DE ESTEIRAS | E72: SINAPI | F72: =VLOOKUP(A70,ORÇAMENTO!$A$10:$I$28,4) -> 101116 | G72: UNIDADE: | H72: =VLOOKUP(A70,ORÇAMENTO!$A$10:$I$28,5) -> M3
B74: TIPO ITEM | C74: CODIGO ITEM | D74: DESCRIÇÃO ITEM | E74: UNIDADE ITEM | F74: COEFICIENTE | G74: PRECO UNITARIO | H74: CUSTO TOTAL
B75: COMPOSICAO | C75: 5847 | D75: TRATOR DE ESTEIRAS, POTÊNCIA 170 HP, PESO OPERACIONAL 19 T, CAÇAMBA 5,2 M3 | E75: CHP | F75: 0,0048000 | G75: 253,93 | H75: =ROUNDDOWN(F75*G75,2) -> 1.21
B76: COMPOSICAO | C76: 5849 | D76: TRATOR DE ESTEIRAS, POTÊNCIA 170 HP, PESO OPERACIONAL 19 T, CAÇAMBA 5,2 M3 | E76: CHI | F76: 0,0082000 | G76: 90,40 | H76: 0.74
B77: COMPOSICAO | C77: 88316 | D77: SERVENTE COM ENCARGOS COMPLEMENTARES | E77: H | F77: 0,0131000 | G77: 19,76 | H77: 0.25
B78: PRODUÇÃO DA EQUIPE | E78: 1 | F78: CUSTO | H78: =SUM(H75:H77) -> 2.2
B79: TOTAL | H79: =H78/E78 -> 2.2 | I79: OK
B80: BDI % | H80: =1+$M$1 -> 1.2149
B81: TOTAL DO SERVIÇO - R$ | H81: =H79*H80 -> 2.67278
A83: 7 | B83: CODEVASF | E83: COMPOSIÇÃO DE PREÇO UNITÁRIO | I83: =H93 -> 8.71 | J83: =H95 -> 10.581779
B84: OBRA: | C84: =$C$2 -> PAVIMENTAÇÃO EM BLOQUETE - RUAS DIVERSAS - MALACACHETA/ MG | G84: DATA: | H84: =$H$2 -> SETEMBRO/2023
B85: SERVIÇO: | C85: =VLOOKUP(A83,ORÇAMENTO!$A$10:$I$28,3) -> CARGA, MANOBRA E DESCARGA DE SOLOS E MATERIAIS GRANULARES EM CAMINHÃO BASCULANTE - CARGA COM PÁ CARREGADEIRA E DESCARGA LIVRE | E85: SINAPI | F85: =VLOOKUP(A83,ORÇAMENTO!$A$10:$I$28,4) -> 100976 | G85: UNIDADE: | H85: =VLOOKUP(A83,ORÇAMENTO!$A$10:$I$28,5) -> M3
B87: TIPO ITEM | C87: CODIGO ITEM | D87: DESCRIÇÃO ITEM | E87: UNIDADE ITEM | F87: COEFICIENTE | G87: PRECO UNITARIO | H87: CUSTO TOTAL
B88: COMPOSICAO | C88: 5940 | D88: PÁ CARREGADEIRA SOBRE RODAS, POTÊNCIA LÍQUIDA 128 HP, CAPACIDADE DA CAÇAMBA 1,7 A 2,8 M3, PESO OPERACIONAL 11632 KG | E88: CHP | F88: 0,0083000 | G88: 217,72 | H88: =ROUNDDOWN(F88*G88,2) -> 1.8
B89: COMPOSICAO | C89: 5942 | D89: PÁ CARREGADEIRA SOBRE RODAS, POTÊNCIA LÍQUIDA 128 HP, CAPACIDADE DA CAÇAMBA 1,7 A 2,8 M3, PESO OPERACIONAL 11632 KG | E89: CHI | F89: 0,0074000 | G89: 95,85 | H89: 0.7
B90: COMPOSICAO | C90: 89883 | D90: CAMINHÃO BASCULANTE 18 M3, COM CAVALO MECÂNICO DE CAPACIDADE MÁXIMA DE TRAÇÃO COMBINADO DE 45000 KG, POTÊNCIA 330 CV, INCLUSIVE SEMIREBOQUE COM CAÇAMBA METÁLICA | E90: CHP | F90: 0,0153000 | G90: 348,45 | H90: 5.33
B91: COMPOSICAO | C91: 89884 | D91: CAMINHÃO BASCULANTE 18 M3, COM CAVALO MECÂNICO DE CAPACIDADE MÁXIMA DE TRAÇÃO COMBINADO DE 45000 KG, POTÊNCIA 330 CV, INCLUSIVE SEMIREBOQUE COM CAÇAMBA METÁLICA | E91: CHI | F91: 0,0095000 | G91: 93,65 | H91: 0.88
B92: PRODUÇÃO DA EQUIPE | E92: 1 | F92: CUSTO | H92: =SUM(H88:H91) -> 8.71
B93: TOTAL | H93: =H92/E92 -> 8.71 | I93: OK
B94: BDI % | H94: =1+$M$1 -> 1.2149
B95: TOTAL DO SERVIÇO - R$ | H95: =H93*H94 -> 10.581779
A97: 8 | B97: CODEVASF | E97: COMPOSIÇÃO DE PREÇO UNITÁRIO | I97: =H110 -> 2.57 | J97: =H112 -> 3.122293
B98: OBRA: | C98: =$C$2 -> PAVIMENTAÇÃO EM BLOQUETE - RUAS DIVERSAS - MALACACHETA/ MG | G98: DATA: | H98: =$H$2 -> SETEMBRO/2023
B99: SERVIÇO: | C99: =VLOOKUP(A97,ORÇAMENTO!$A$10:$I$28,3) -> REGULARIZAÇÃO E COMPACTAÇÃO DE SUBLEITO | E99: SINAPI | F99: =VLOOKUP(A97,ORÇAMENTO!$A$10:$I$28,4) -> 100576 | G99: UNIDADE: | H99: =VLOOKUP(A97,ORÇAMENTO!$A$10:$I$28,5) -> M2
B101: TIPO ITEM | C101: CODIGO ITEM | D101: DESCRIÇÃO ITEM | E101: UNIDADE ITEM | F101: COEFICIENTE | G101: PRECO UNITARIO | H101: CUSTO TOTAL
B102: COMPOSICAO | C102: 5901 | D102: CAMINHÃO PIPA 10.000 L TRUCADO, PESO BRUTO TOTAL 23.000 KG, CARGA ÚTIL MÁXIMA 15.935 KG, DISTÂNCIA ENTRE EIXOS 4,8 M, POTÊNCIA 230 CV, INCLUSIVE TANQUE DE AÇO PARA TRANSPORTE DE ÁGUA | E102: CHP | F102: 0,0010000 | G102: 294,94 | H102: =ROUNDDOWN(F102*G102,2) -> 0.29
B103: COMPOSICAO | C103: 5903 | D103: CAMINHÃO PIPA 10.000 L TRUCADO, PESO BRUTO TOTAL 23.000 KG, CARGA ÚTIL MÁXIMA 15.935 KG, DISTÂNCIA ENTRE EIXOS 4,8 M, POTÊNCIA 230 CV, INCLUSIVE TANQUE DE AÇO PARA TRANSPORTE DE ÁGUA | E103: CHI | F103: 0,0070000 | G103: 72,55 | H103: 0.5
B104: COMPOSICAO | C104: 5932 | D104: MOTONIVELADORA POTÊNCIA BÁSICA LÍQUIDA (PRIMEIRA MARCHA) 125 HP, PESO BRUTO 13032 KG, LARGURA DA LÂMINA DE 3,7 M | E104: CHP | F104: 0,0001000 | G104: 262,71 | H104: 0.02
B105: COMPOSICAO | C105: 5934 | D105: MOTONIVELADORA POTÊNCIA BÁSICA LÍQUIDA (PRIMEIRA MARCHA) 125 HP, PESO BRUTO 13032 KG, LARGURA DA LÂMINA DE 3,7 M | E105: CHI | F105: 0,0080000 | G105: 109,40 | H105: 0.87
B106: COMPOSICAO | C106: 73436 | D106: ROLO COMPACTADOR VIBRATÓRIO PÉ DE CARNEIRO PARA SOLOS, POTÊNCIA 80 HP, PESO OPERACIONAL SEM/COM LASTRO 7,4 / 8,8 T, LARGURA DE TRABALHO 1,68 M | E106: CHP | F106: 0,0020000 | G106: 163,19 | H106: 0.32
B107: COMPOSICAO | C107: 88316 | D107: SERVENTE COM ENCARGOS COMPLEMENTARES | E107: H | F107: 0,0080000 | G107: 19,76 | H107: 0.15
B108: COMPOSICAO | C108: 93244 | D108: ROLO COMPACTADOR VIBRATÓRIO PÉ DE CARNEIRO PARA SOLOS, POTÊNCIA 80 HP, PESO OPERACIONAL SEM/COM LASTRO 7,4 / 8,8 T, LARGURA DE TRABALHO 1,68 M | E108: CHI | F108: 0,0060000 | G108: 71,18 | H108: 0.42
B109: PRODUÇÃO DA EQUIPE | E109: 1 | F109: CUSTO | H109: =SUM(H102:H108) -> 2.57
B110: TOTAL | H110: =H109/E109 -> 2.57 | I110: OK
B111: BDI % | H111: =1+$M$1 -> 1.2149
B112: TOTAL DO SERVIÇO - R$ | H112: =H110*H111 -> 3.122293
A114: 10 | B114: CODEVASF | E114: COMPOSIÇÃO DE PREÇO UNITÁRIO | I114: =H129 -> 12.47 | J114: =H131 -> 15.15
B115: OBRA: | C115: =$C$2 -> PAVIMENTAÇÃO EM BLOQUETE - RUAS DIVERSAS - MALACACHETA/ MG | G115: DATA: | H115: =$H$2 -> SETEMBRO/2023
B116: SERVIÇO: | C116: =VLOOKUP(A114,ORÇAMENTO!$A$10:$I$28,3) -> EXECUÇÃO E COMPACTAÇÃO DE BASE E OU SUB BASE PARA PAVIMENTAÇÃO EM CASCALHO - EXCLUSIVE SOLO, ESCAVAÇÃO, CARGA E TRANSPORTE. | E116: SINAPI | F116: =VLOOKUP(A114,ORÇAMENTO!$A$10:$I$28,4) -> 96388 | G116: UNIDADE: | H116: =VLOOKUP(A114,ORÇAMENTO!$A$10:$I$28,5) -> M3
B118: TIPO ITEM | C118: CODIGO ITEM | D118: DESCRIÇÃO ITEM | E118: UNIDADE ITEM | F118: COEFICIENTE | G118: PRECO UNITARIO | H118: CUSTO TOTAL
B119: COMPOSICAO | C119: 5684 | D119: ROLO COMPACTADOR VIBRATÓRIO DE UM CILINDRO AÇO LISO, POTÊNCIA 80 HP, PESO OPERACIONAL MÁXIMO 8,1 T, IMPACTO DINÂMICO 16,15 / 9,5 T, LARGURA DE TRABALHO 1,68 M | E119: CHP | F119: 0,0030000 | G119: 159,98 | H119: =ROUNDDOWN(F119*G119,2) -> 0.47
B120: COMPOSICAO | C120: 5685 | D120: ROLO COMPACTADOR VIBRATÓRIO DE UM CILINDRO AÇO LISO, POTÊNCIA 80 HP, PESO OPERACIONAL MÁXIMO 8,1 T, IMPACTO DINÂMICO 16,15 / 9,5 T, LARGURA DE TRABALHO 1,68 M | E120: CHI | F120: 0,0230000 | G120: 69,53 | H120: 1.59
B121: COMPOSICAO | C121: 5901 | D121: CAMINHÃO PIPA 10.000 L TRUCADO, PESO BRUTO TOTAL 23.000 KG, CARGA ÚTIL MÁXIMA 15.935 KG, DISTÂNCIA ENTRE EIXOS 4,8 M, POTÊNCIA 230 CV, INCLUSIVE TANQUE DE AÇO PARA TRANSPORTE DE ÁGUA | E121: CHP | F121: 0,0040000 | G121: 294,94 | H121: =ROUNDDOWN(F121*G121,2) -> 1.17
B122: COMPOSICAO | C122: 5903 | D122: CAMINHÃO PIPA 10.000 L TRUCADO, PESO BRUTO TOTAL 23.000 KG, CARGA ÚTIL MÁXIMA 15.935 KG, DISTÂNCIA ENTRE EIXOS 4,8 M, POTÊNCIA 230 CV, INCLUSIVE TANQUE DE AÇO PARA TRANSPORTE DE ÁGUA | E122: CHI | F122: 0,0220000 | G122: 72,55 | H122: 1.59
B123: COMPOSICAO | C123: 5932 | D123: MOTONIVELADORA POTÊNCIA BÁSICA LÍQUIDA (PRIMEIRA MARCHA) 125 HP, PESO BRUTO 13032 KG, LARGURA DA LÂMINA DE 3,7 M | E123: CHP | F123: 0,0080000 | G123: 262,71 | H123: 2.1
B124: COMPOSICAO | C124: 5934 | D124: MOTONIVELADORA POTÊNCIA BÁSICA LÍQUIDA (PRIMEIRA MARCHA) 125 HP, PESO BRUTO 13032 KG, LARGURA DA LÂMINA DE 3,7 M | E124: CHI | F124: 0,0190000 | G124: 109,40 | H124: 2.07
B125: COMPOSICAO | C125: 88316 | D125: SERVENTE COM ENCARGOS COMPLEMENTARES | E125: H | F125: 0,0260000 | G125: 19,76 | H125: 0.51
B126: COMPOSICAO | C126: 96463 | D126: ROLO COMPACTADOR DE PNEUS, ESTATICO, PRESSAO VARIAVEL, POTENCIA 110 HP, PESO SEM/COM LASTRO 10,8/27 T, LARGURA DE ROLAGEM 2,30 M | E126: CHP | F126: 0,0040000 | G126: 218,21 | H126: 0.87
B127: COMPOSICAO | C127: 96464 | D127: ROLO COMPACTADOR DE PNEUS, ESTATICO, PRESSAO VARIAVEL, POTENCIA 110 HP, PESO SEM/COM LASTRO 10,8/27 T, LARGURA DE ROLAGEM 2,30 M | E127: CHI | F127: 0,0220000 | G127: 95,83 | H127: 2.1
B128: PRODUÇÃO DA EQUIPE | E128: 1 | F128: CUSTO | H128: =SUM(H119:H127) -> 12.47
B129: TOTAL | H129: =H128/E128 -> 12.47
B130: BDI % | H130: =1+$M$1 -> 1.2149
B131: TOTAL DO SERVIÇO - R$ | H131: =ROUND(H129*H130,2) -> 15.15
A133: 11 | B133: CODEVASF | E133: COMPOSIÇÃO DE PREÇO UNITÁRIO | I133: =H148 -> 65.99 | J133: =H150 -> 80.171251
B134: OBRA: | C134: =$C$2 -> PAVIMENTAÇÃO EM BLOQUETE - RUAS DIVERSAS - MALACACHETA/ MG | G134: DATA: | H134: =$H$2 -> SETEMBRO/2023
B135: SERVIÇO: | C135: =VLOOKUP(A133,ORÇAMENTO!$A$10:$I$28,3) -> EXECUÇÃO DE PAVIMENTO EM PISO INTERTRAVADO, COM BLOCO SEXTAVADO DE CONCRETO DE 25 X 25 CM, ESPESSURA 8 CM | E135: SINAPI | F135: =VLOOKUP(A133,ORÇAMENTO!$A$10:$I$28,4) -> 92394 | G135: UNIDADE: | H135: =VLOOKUP(A133,ORÇAMENTO!$A$10:$I$28,5) -> M2
B137: TIPO ITEM | C137: CODIGO ITEM | D137: DESCRIÇÃO ITEM | E137: UNIDADE ITEM | F137: COEFICIENTE | G137: PRECO UNITARIO | H137: CUSTO TOTAL
B138: INSUMO | C138: 370 | D138: AREIA MEDIA - POSTO JAZIDA/FORNECEDOR (RETIRADO NA JAZIDA, SEM TRANSPORTE) | E138: M3 | F138: 0,0568000 | G138: 97,50 | H138: =ROUNDDOWN(F138*G138,2) -> 5.53
B139: INSUMO | C139: COTAÇÃO | D139: BLOQUETE/PISO INTERTRAVADO DE CONCRETO - MODELO SEXTAVADO / HEXAGONAL, 25 CM X 25 CM, E = 8 CM, RESISTENCIA DE 35 MPA (NBR 9781), COR NATURAL | E139: M2 | F139: 1,0038000 | G139: 52.5 | H139: 52.69
B140: INSUMO | C140: 4741 | D140: PO DE PEDRA (POSTO PEDREIRA/FORNECEDOR, SEM FRETE) | E140: M3 | F140: 0,0066000 | G140: 111,12 | H140: 0.73
B141: COMPOSICAO | C141: 88260 | D141: CALCETEIRO COM ENCARGOS COMPLEMENTARES | E141: H | F141: 0,1683000 | G141: 21,06 | H141: 3.54
B142: COMPOSICAO | C142: 88316 | D142: SERVENTE COM ENCARGOS COMPLEMENTARES | E142: H | F142: 0,1683000 | G142: 19,76 | H142: 3.32
B143: COMPOSICAO | C143: 91277 | D143: PLACA VIBRATÓRIA REVERSÍVEL COM MOTOR 4 TEMPOS A GASOLINA, FORÇA CENTRÍFUGA DE 25 KN (2500 KGF), POTÊNCIA 5,5 CV | E143: CHP | F143: 0,0055000 | G143: 8,77 | H143: 0.04
B144: COMPOSICAO | C144: 91278 | D144: PLACA VIBRATÓRIA REVERSÍVEL COM MOTOR 4 TEMPOS A GASOLINA, FORÇA CENTRÍFUGA DE 25 KN (2500 KGF), POTÊNCIA 5,5 CV | E144: CHI | F144: 0,0787000 | G144: 0,52 | H144: 0.04
B145: COMPOSICAO | C145: 91283 | D145: CORTADORA DE PISO COM MOTOR 4 TEMPOS A GASOLINA, POTÊNCIA DE 13 HP, COM DISCO DE CORTE DIAMANTADO SEGMENTADO PARA CONCRETO, DIÂMETRO DE 350 MM, FURO DE 1" (14 X 1") | E145: CHP | F145: 0,0038000 | G145: 9,69 | H145: 0.03
B146: COMPOSICAO | C146: 91285 | D146: CORTADORA DE PISO COM MOTOR 4 TEMPOS A GASOLINA, POTÊNCIA DE 13 HP, COM DISCO DE CORTE DIAMANTADO SEGMENTADO PARA CONCRETO, DIÂMETRO DE 350 MM, FURO DE 1" (14 X 1") | E146: CHI | F146: 0,0804000 | G146: 0,92 | H146: 0.07
B147: PRODUÇÃO DA EQUIPE | E147: 1 | F147: CUSTO | H147: =SUM(H138:H146) -> 65.99
B148: TOTAL | H148: =H147/E147 -> 65.99 | I148: OK
B149: BDI % | H149: =1+$M$1 -> 1.2149
B150: TOTAL DO SERVIÇO - R$ | H150: =H148*H149 -> 80.171251
A152: 12 | B152: CODEVASF | E152: COMPOSIÇÃO DE PREÇO UNITÁRIO | I152: =H161 -> 1.41 | J152: =H163 -> 1.713009
B153: OBRA: | C153: =$C$2 -> PAVIMENTAÇÃO EM BLOQUETE - RUAS DIVERSAS - MALACACHETA/ MG | G153: DATA: | H153: =$H$2 -> SETEMBRO/2023
B154: SERVIÇO: | C154: =VLOOKUP(A152,ORÇAMENTO!$A$10:$I$28,3) -> TRANSPORTE COM CAMINHÃO BASCULANTE, EM VIA URBANA EM REVESTIMENTO PRIMÁRIO | E154: SINAPI | F154: =VLOOKUP(A152,ORÇAMENTO!$A$10:$I$28,4) -> 95426 | G154: UNIDADE: | H154: =VLOOKUP(A152,ORÇAMENTO!$A$10:$I$28,5) -> M3XKM
B156: TIPO ITEM | C156: CODIGO ITEM | D156: DESCRIÇÃO ITEM | E156: UNIDADE ITEM | F156: COEFICIENTE | G156: PRECO UNITARIO | H156: CUSTO TOTAL
B157: COMPOSICAO | C157: 89883a | D157: CAMINHÃO BASCULANTE 18 M3, COM CAVALO MECÂNICO DE CAPACIDADE MÁXIMA DE TRAÇÃO COMBINADO DE 45000 KG, POTÊNCIA 330 CV, INCLUSIVE SEMIREBOQUE COM CAÇAMBA METÁLICA | E157: CHP | F157: 0.0035 | G157: 348,45 | H157: =ROUNDDOWN(F157*G157,2) -> 1.21
B158: COMPOSICAO | C158: 89884 | D158: CAMINHÃO BASCULANTE 18 M3, COM CAVALO MECÂNICO DE CAPACIDADE MÁXIMA DE TRAÇÃO COMBINADO DE 45000 KG, POTÊNCIA 330 CV, INCLUSIVE SEMIREBOQUE COM CAÇAMBA METÁLICA | E158: CHI | F158: 0,0022000 | G158: 93,65 | H158: 0.2
H159: =F159*G159 -> 0
B160: PRODUÇÃO DA EQUIPE | E160: 1 | F160: CUSTO | H160: =SUM(H157:H159) -> 1.41
B161: TOTAL | H161: =H160/E160 -> 1.41 | I161: OK
B162: BDI % | H162: =1+$M$1 -> 1.2149
B163: TOTAL DO SERVIÇO - R$ | H163: =H161*H162 -> 1.713009
A165: 13 | B165: CODEVASF | E165: COMPOSIÇÃO DE PREÇO UNITÁRIO | I165: =H174 -> 0.73 | J165: =H176 -> 0.886877
B166: OBRA: | C166: =$C$2 -> PAVIMENTAÇÃO EM BLOQUETE - RUAS DIVERSAS - MALACACHETA/ MG | G166: DATA: | H166: =$H$2 -> SETEMBRO/2023
B167: SERVIÇO: | C167: =VLOOKUP(A165,ORÇAMENTO!$A$10:$I$28,3) -> TRANSPORTE COM CAMINHÃO BASCULANTE, EM VIA URBANA PAVIMENTADA | E167: SINAPI | F167: =VLOOKUP(A165,ORÇAMENTO!$A$10:$I$28,4) -> 95427 | G167: UNIDADE: | H167: =VLOOKUP(A165,ORÇAMENTO!$A$10:$I$28,5) -> M3XKM
B169: TIPO ITEM | C169: CODIGO ITEM | D169: DESCRIÇÃO ITEM | E169: UNIDADE ITEM | F169: COEFICIENTE | G169: PRECO UNITARIO | H169: CUSTO TOTAL
B170: COMPOSICAO | C170: 89883 | D170: CAMINHÃO BASCULANTE 18 M3, COM CAVALO MECÂNICO DE CAPACIDADE MÁXIMA DE TRAÇÃO COMBINADO DE 45000 KG, POTÊNCIA 330 CV, INCLUSIVE SEMIREBOQUE COM CAÇAMBA METÁLICA - CHP DIURNO. AF_12/2014 | E170: CHP | F170: 0,0019000 | G170: 348,45 | H170: =ROUNDDOWN(F170*G170,2) -> 0.66
B171: COMPOSICAO | C171: 89884 | D171: CAMINHÃO BASCULANTE 18 M3, COM CAVALO MECÂNICO DE CAPACIDADE MÁXIMA DE TRAÇÃO COMBINADO DE 45000 KG, POTÊNCIA 330 CV, INCLUSIVE SEMIREBOQUE COM CAÇAMBA METÁLICA - CHI DIURNO. AF_12/2014 | E171: CHI | F171: 0,0008000 | G171: 93,65 | H171: 0.07
H172: =F172*G172 -> 0
B173: PRODUÇÃO DA EQUIPE | E173: 1 | F173: CUSTO | H173: =SUM(H170:H172) -> 0.73
B174: TOTAL | H174: =H173/E173 -> 0.73 | I174: OK
B175: BDI % | H175: =1+$M$1 -> 1.2149
B176: TOTAL DO SERVIÇO - R$ | H176: =H174*H175 -> 0.886877
A178: 14 | B178: CODEVASF | E178: COMPOSIÇÃO DE PREÇO UNITÁRIO | I178: =H187 -> 0.63 | J178: =H189 -> 0.765387
B179: OBRA: | C179: =$C$2 -> PAVIMENTAÇÃO EM BLOQUETE - RUAS DIVERSAS - MALACACHETA/ MG | G179: DATA: | H179: =$H$2 -> SETEMBRO/2023
B180: SERVIÇO: | C180: =VLOOKUP(A178,ORÇAMENTO!$A$10:$I$28,3) -> TRANSPORTE COM CAMINHÃO CARROCERIA, EM VIA URBANA PAVIMENTADA | E180: SINAPI | F180: =VLOOKUP(A178,ORÇAMENTO!$A$10:$I$28,4) -> 100948 | G180: UNIDADE: | H180: =VLOOKUP(A178,ORÇAMENTO!$A$10:$I$28,5) -> TXKM
B182: TIPO ITEM | C182: CODIGO ITEM | D182: DESCRIÇÃO ITEM | E182: UNIDADE ITEM | F182: COEFICIENTE | G182: PRECO UNITARIO | H182: CUSTO TOTAL
B183: COMPOSICAO | C183: 5824a | D183: CAMINHÃO TOCO, PBT 16.000 KG, CARGA ÚTIL MÁX. 10.685 KG, DIST. ENTRE EIXOS 4,8 M, POTÊNCIA 189 CV, INCLUSIVE CARROCERIA FIXA ABERTA DE MADEIRA P/ TRANSPORTE GERAL DE CARGA SECA | E183: CHP | F183: 0.0027 | G183: 202,74 | H183: =ROUNDDOWN(F183*G183,2) -> 0.54
B184: COMPOSICAO | C184: 5826 | D184: CAMINHÃO TOCO, PBT 16.000 KG, CARGA ÚTIL MÁX. 10.685 KG, DIST. ENTRE EIXOS 4,8 M, POTÊNCIA 189 CV, INCLUSIVE CARROCERIA FIXA ABERTA DE MADEIRA P/ TRANSPORTE GERAL DE CARGA SECA | E184: CHI | F184: 0,0016000 | G184: 60,95 | H184: 0.09
H185: =F185*G185 -> 0
B186: PRODUÇÃO DA EQUIPE | E186: 1 | F186: CUSTO | H186: =SUM(H183:H185) -> 0.63
B187: TOTAL | H187: =H186/E186 -> 0.63 | I187: OK
B188: BDI % | H188: =1+$M$1 -> 1.2149
B189: TOTAL DO SERVIÇO - R$ | H189: =H187*H188 -> 0.765387
A191: 15 | B191: CODEVASF | E191: COMPOSIÇÃO DE PREÇO UNITÁRIO | I191: =H203 -> 45.68 | J191: =H205 -> 55.496632
B192: OBRA: | C192: =$C$2 -> PAVIMENTAÇÃO EM BLOQUETE - RUAS DIVERSAS - MALACACHETA/ MG | G192: DATA: | H192: =$H$2 -> SETEMBRO/2023
B193: SERVIÇO: | C193: =VLOOKUP(A191,ORÇAMENTO!$A$10:$I$28,3) -> ASSENTAMENTO DE GUIA (MEIO-FIO) EM TRECHO RETO, CONFECCIONADA EM CONCRETO PRÉ-FABRICADO, DIMENSÕES 100X15X13X30 CM (COMPRIMENTO X BASE INFERIOR X BASE SUPERIOR X ALTURA) | E193: SINAPI | F193: =VLOOKUP(A191,ORÇAMENTO!$A$10:$I$28,4) -> 94273a | G193: UNIDADE: | H193: =VLOOKUP(A191,ORÇAMENTO!$A$10:$I$28,5) -> M
B195: TIPO ITEM | C195: CODIGO ITEM | D195: DESCRIÇÃO ITEM | E195: UNIDADE ITEM | F195: COEFICIENTE | G195: PRECO UNITARIO | H195: CUSTO TOTAL
B196: INSUMO | C196: 370 | D196: AREIA MEDIA - POSTO JAZIDA/FORNECEDOR (RETIRADO NA JAZIDA, SEM TRANSPORTE) | E196: M3 | F196: 0,0070000 | G196: 97,50 | H196: =ROUNDDOWN(F196*G196,2) -> 0.68
B197: INSUMO | C197: COTAÇÃO | D197: MEIO-FIO OU GUIA DE CONCRETO, PRE-MOLDADO, COMP 1 M, *30 X 12/15* CM (H X L1/L2) | E197: M | F197: 1,0050000 | G197: =20/0.8 -> 25 | H197: 25.12 | J197: SOS Materiais de Construção (Malacacheta - Samuel - cotaçao de 22/09/23) via telefone - (33) 99164-4383
B198: COMPOSICAO | C198: 88309 | D198: PEDREIRO COM ENCARGOS COMPLEMENTARES | E198: H | F198: 0,3940000 | G198: 27,45 | H198: 10.81
B199: COMPOSICAO | C199: 88316 | D199: SERVENTE COM ENCARGOS COMPLEMENTARES | E199: H | F199: 0,3940000 | G199: 19,76 | H199: 7.78
B200: COMPOSICAO | C200: 88629 | D200: ARGAMASSA TRAÇO 1:3 (EM VOLUME DE CIMENTO E AREIA MÉDIA ÚMIDA), PREPARO MANUAL. AF_08/2019 | E200: M3 | F200: 0,0020000 | G200: 645,53 | H200: 1.29
B202: PRODUÇÃO DA EQUIPE | E202: 1 | F202: CUSTO | H202: =SUM(H196:H200) -> 45.68
B203: TOTAL | H203: =H202/E202 -> 45.68 | I203: OK
B204: BDI % | H204: =1+$M$1 -> 1.2149
B205: TOTAL DO SERVIÇO - R$ | H205: =H203*H204 -> 55.496632
A207: 16 | B207: CODEVASF | E207: COMPOSIÇÃO DE PREÇO UNITÁRIO | I207: =H220 -> 34.83 | J207: =H222 -> 42.314967
B208: OBRA: | C208: =$C$2 -> PAVIMENTAÇÃO EM BLOQUETE - RUAS DIVERSAS - MALACACHETA/ MG | G208: DATA: | H208: =$H$2 -> SETEMBRO/2023
B209: SERVIÇO: | C209: =VLOOKUP(A207,ORÇAMENTO!$A$10:$I$28,3) -> EXECUÇÃO DE SARJETA DE CONCRETO USINADO, MOLDADA IN LOCO EM TRECHO RETO, 30 CM BASE X 5 CM ALTURA | E209: SINAPI | F209: =VLOOKUP(A207,ORÇAMENTO!$A$10:$I$28,4) -> 94287a | G209: UNIDADE: | H209: =VLOOKUP(A207,ORÇAMENTO!$A$10:$I$28,5) -> M
B211: TIPO ITEM | C211: CODIGO ITEM | D211: DESCRIÇÃO ITEM | E211: UNIDADE ITEM | F211: COEFICIENTE | G211: PRECO UNITARIO | H211: CUSTO TOTAL
B212: INSUMO | C212: 370 | D212: AREIA MEDIA - POSTO JAZIDA/FORNECEDOR (RETIRADO NA JAZIDA, SEM TRANSPORTE) | E212: M3 | F212: 0,0100000 | G212: 97,50 | H212: =ROUNDDOWN(F212*G212,2) -> 0.97
B213: INSUMO | C213: 4517 | D213: SARRAFO *2,5 X 7,5* CM EM PINUS, MISTA OU EQUIVALENTE DA REGIAO - BRUTA | E213: M | F213: 0,2000000 | G213: 3,04 | H213: 0.6
B214: INSUMO | C214: 6189 | D214: TABUA NAO APARELHADA *2,5 X 30* CM, EM MACARANDUBA/MASSARANDUBA, ANGELIM OU EQUIVALENTE DA REGIAO - BRUTA | E214: M | F214: 0,0830000 | G214: 43,21 | H214: 3.58
B215: INSUMO | C215: 34492a | D215: CONCRETO USINADO BOMBEAVEL, CLASSE DE RESISTENCIA C20, COM BRITA 0 E 1, SLUMP = 100 +/- 20 MM, EXCLUI SERVICO DE BOMBEAMENTO (NBR 8953) | E215: M3 | F215: =(0.3*0.05) -> 0.015 | G215: 550,00 | H215: 8.25
B216: COMPOSICAO | C216: 88309 | D216: PEDREIRO COM ENCARGOS COMPLEMENTARES | E216: H | F216: 0,4540000 | G216: 27,45 | H216: 12.46
B217: COMPOSICAO | C217: 88316 | D217: SERVENTE COM ENCARGOS COMPLEMENTARES | E217: H | F217: 0,4540000 | G217: 19,76 | H217: 8.97
B219: PRODUÇÃO DA EQUIPE | E219: 1 | F219: CUSTO | H219: =SUM(H212:H217) -> 34.83
B220: TOTAL | H220: =H219/E219 -> 34.83 | I220: OK
B221: BDI % | H221: =1+$M$1 -> 1.2149
B222: TOTAL DO SERVIÇO - R$ | H222: =H220*H221 -> 42.314967
A224: 17 | B224: CODEVASF | E224: COMPOSIÇÃO DE PREÇO UNITÁRIO | I224: =H237 -> 482.58 | J224: =H239 -> 586.29
B225: OBRA: | C225: =$C$2 -> PAVIMENTAÇÃO EM BLOQUETE - RUAS DIVERSAS - MALACACHETA/ MG | G225: DATA: | H225: =$H$2 -> SETEMBRO/2023
B226: SERVIÇO: | C226: =VLOOKUP(A224,ORÇAMENTO!$A$10:$I$30,3) -> FORNECIMENTO E INSTALAÇÃO DE PLACA DE SINALIZAÇÃO VIÁRIA - REGULAMENTAÇÃO (PARE) | E226: SINAPI | F226: =VLOOKUP(A224,ORÇAMENTO!$A$10:$I$30,4) -> CPU.4 | G226: UNIDADE: | H226: =VLOOKUP(A224,ORÇAMENTO!$A$10:$I$30,5) -> UN.
B228: TIPO ITEM | C228: CODIGO ITEM | D228: DESCRIÇÃO ITEM | E228: UNIDADE ITEM | F228: COEFICIENTE | G228: PRECO UNITARIO | H228: CUSTO TOTAL
B229: COMPOSICAO | C229: 94962 | D229: CONCRETO MAGRO PARA LASTRO, TRAÇO 1:4,5:4,5 (EM MASSA SECA DE CIMENTO/ AREIA/ BRITA 1) | E229: M3 | F229: 0.024 | G229: 397.46 | H229: =ROUNDDOWN(F229*G229,2) -> 9.53
B230: COMPOSICAO | C230: 93358 | D230: ESCAVAÇÃO MANUAL DE VALA COM PROFUNDIDADE MENOR OU IGUAL A 1,30 M | E230: M3 | F230: 0.024 | G230: 78.17 | H230: 1.87
B231: COMPOSICAO | C231: 88309 | D231: PEDREIRO COM ENCARGOS COMPLEMENTARES | E231: H | F231: 0.2 | G231: 27.45 | H231: 5.49
B232: COMPOSICAO | C232: 88316 | D232: SERVENTE COM ENCARGOS COMPLEMENTARES | E232: H | F232: 1 | G232: 19.76 | H232: 19.76
B233: COMPOSICAO | C233: 103670 | D233: LANÇAMENTO COM USO DE BALDES, ADENSAMENTO E ACABAMENTO DE CONCRETO EM ESTRUTURAS | E233: M3 | F233: 0.024 | G233: 281.66 | H233: 6.75
... 21 more rows

Sheet BDI SERV
B1: DETALHAMENTO DO BDI - SERVIÇOS
B4: Item | C4: Descrição dos Serviços | D4: % | E4: %
D5: PV | E5: CD
B7: 1 | C7: ADMINISTRAÇÃO CENTRAL | E7: 4.01
B8: 1.1 | C8: ESCRITÓRIO CENTRAL
B9: 1.2 | C9: VIAGENS
B10: 1.3 | C10: OUTROS
B12: 2 | C12: IMPOSTOS E TAXAS | D12: =SUM(D13:D15) -> 5.65 | E12: =SUM(E13:E15) -> 7.06
B13: 2.1 | C13: ISS (*) | D13: =5*0.4 -> 2 | E13: =ROUND(D13*1.2515,2) -> 2.5
B14: 2.2 | C14: PIS | D14: 0.65 | E14: 0.81
B15: 2.3 | C15: Cofins | D15: 3 | E15: 3.75
B17: 3 | C17: TAXA DE RISCO | E17: =SUM(E18:E21) -> 0.96
B18: 3.1 | C18: SEGURO | E18: 0.2
B19: 3.2 | C19: RISCO | E19: 0.56
B20: 3.3 | C20: GARANTIA | E20: 0.2
B22: 4 | C22: DESPESAS FINANCEIRAS | E22: 1.11
B24: 5 | C24: LUCRO | E24: 8
C26: BDI - CALCULADO | E26: =ROUND((((1+(E7+E17)/100)*(1+E22/100)*(1+E24/100)/(1-D12/100)-1)*100),2) -> 21.49
A28: BDI = ((1+((AC+S+R+G)/100))x(1+DF/100)x(1+L/100)/(1-I/100)-1)*100
B30: BDI (CALCULADO): | D30: =ROUND((((1+((E7+E17)/100))*(1+E22/100)*(1+E24/100))/(1-D12/100)-1)*100,2) -> 21.49 | E30: %
A32: (*) ISS CONFORME LEI COMPLEMENTAR MUNICIPAL 004/2023, ALTERADO PELA LEI 071/2017 (EM ANEXO) QUANT. ESTIMADA DE MATERIAIS = 60%
A36: BDI EM CONFORMIDADE COM OS ACÓRDÃOS Nº 2369/2011 e ACÓRDÃO Nº 2.622/2013 - TCU - PLENÁRIO

Sheet CRONOGRAMA
B1: CRONOGRAMA FÍSICO-FINANCEIRO
B2: OBRA: | C2: =ORÇAMENTO!C5 -> PAVIMENTAÇÃO EM BLOQUETE - RUAS DIVERSAS - MALACACHETA/ MG | F2: VALOR: | G2: =ORÇAMENTO!I31 -> 2555606.38
F3: PRAZO: | G3: 210 DIAS
B5: ITEM | C5: ETAPAS/DESCRIÇAO | D5: FISICO/ FINANCEIRO | E5: TOTAL ETAPAS | F5: MÊS 1 | G5: MÊS 2 | H5: MÊS 3 | I5: MÊS 4 | J5: MÊS 5 | K5: MÊS 6 | L5: MÊS 7 | M5: TOTAL
A6: A | B6: =VLOOKUP(A6,ORÇAMENTO!$A$9:$I$31,2) -> 1 | C6: =VLOOKUP(A6,ORÇAMENTO!$A$9:$I$31,3) -> SERVIÇOS PRELIMINARES | D6: FISICO | E6: =ROUND(E7/$G$2,4) -> 0.0434 | F6: 0.2 | G6: 0.125 | H6: 0.15 | I6: 0.15 | J6: 0.1 | K6: 0.1 | L6: 0.175 | M6: =SUM(F6:L6) -> 1
D7: FINANCEIRO | E7: =ORÇAMENTO!I9 -> 110958.61 | F7: =ROUND($E$7*F6,2) -> 22191.72 | G7: 13869.83 | H7: 16643.79 | I7: 16643.79 | J7: 11095.86 | K7: 11095.86 | L7: 19417.76 | M7: =SUM(F7:L7)+0.01 -> 110958.62
A8: B | B8: =VLOOKUP(A8,ORÇAMENTO!$A$9:$I$31,2) -> 2 | C8: =VLOOKUP(A8,ORÇAMENTO!$A$9:$I$31,3) -> PAVIMENTAÇÃO | D8: FISICO | E8: =ROUND(E9/$G$2,4) -> 0.6733 | F8: 0.15 | G8: 0.125 | H8: 0.175 | I8: 0.2 | J8: 0.15 | K8: 0.125 | L8: 0.075 | M8: =SUM(F8:L8) -> 1
D9: FINANCEIRO | E9: =ORÇAMENTO!I15 -> 1720687.19 | F9: =ROUND($E$9*F8,2) -> 258103.08 | G9: 215085.9 | H9: 301120.26 | I9: 344137.44 | J9: 258103.08 | K9: 215085.9 | L9: 129051.54 | M9: =SUM(F9:L9) -> 1720687.2
A10: C | B10: =VLOOKUP(A10,ORÇAMENTO!$A$9:$I$31,2) -> 3 | C10: =VLOOKUP(A10,ORÇAMENTO!$A$9:$I$31,3) -> TRANSPORTE DE MATERIAIS | D10: FISICO | E10: =ROUND(E11/$G$2,4) -> 0.0423 | F10: 0.15 | G10: 0.15 | H10: 0.15 | I10: 0.15 | J10: 0.125 | K10: 0.125 | L10: 0.15 | M10: =SUM(F10:L10) -> 1
D11: FINANCEIRO | E11: =ORÇAMENTO!I22 -> 108174.69 | F11: =ROUND($E$11*F10,2) -> 16226.2 | G11: =ROUND($E$11*G10,2) -> 16226.2 | H11: 16226.2 | I11: 16226.2 | J11: 13521.84 | K11: 13521.84 | L11: 16226.2 | M11: =SUM(F11:L11)+0.01 -> 108174.69
A12: D | B12: =VLOOKUP(A12,ORÇAMENTO!$A$9:$I$31,2) -> 4 | C12: =VLOOKUP(A12,ORÇAMENTO!$A$9:$I$31,3) -> OBRAS COMPLEMENTARES | D12: FISICO | E12: =ROUND(E13/$G$2,4) -> 0.241 | G12: 0.05 | H12: 0.1 | I12: 0.15 | J12: 0.25 | K12: 0.25 | L12: 0.2 | M12: =SUM(F12:L12) -> 1
D13: FINANCEIRO | E13: =ORÇAMENTO!I26 -> 615785.89 | F13: =ROUND($E$13*F12,2) -> 0 | G13: =ROUND($E$13*G12,2) -> 30789.29 | H13: 61578.59 | I13: 92367.88 | J13: 153946.47 | K13: 153946.47 | L13: 123157.18 | M13: =SUM(F13:L13) -> 615785.88
B14: TOTAL | D14: FISICO | E14: =SUM(F14:L14) -> 0.9999999961 | F14: =F15/E15 -> 0.116027649 | G14: =G15/$E$15 -> 0.1079865906 | H14: 0.1547847286 | I14: 0.1836649469 | J14: 0.1708663953 | K14: 0.1540339205 | L14: 0.1126357651 | M14: =SUM(F14:L14) -> 0.9999999961
D15: FINANCEIRO | E15: =E11+E9+E7+E13 -> 2555606.38 | F15: 296521 | G15: 275971.22 | H15: 395568.84 | I15: 469375.31 | J15: 436667.25 | K15: 393650.07 | L15: 287852.68 | M15: =SUM(F15:L15)+0.01 -> 2555606.38
B17: OBSERVAÇÕES:
